bitfinex-derivatives/quotes_SOLF0:USTF0_20251211
["timestamp","ask_amount","ask_price","bid_price","bid_amount"]
[1765413496392,0.0540866,135.06,135.01,3.39]
[1765413496695,0.0540866,135.06,135.03,3.39]
[1765413496896,0.0540866,135.06,135.05,3.39]
[1765413497897,0.0540866,135.06,135.01,3.39]
[1765413498198,0.0540866,135.06,135.03,3.39]
[1765413500404,106.9765866,135.06,134.99,66.31]
[1765413500600,3.33433879,135.04,134.99,66.31]
[1765413500896,9.99793879,135.04,134.99,66.31]
[1765413501398,3.33433879,135.04,134.99,69.5857]
[1765413501601,3.33433879,135.04,134.98,62.92]
[1765413501992,9.99803879,135.04,134.98,66.31]
[1765413502189,106.9843,134.98,134.89,3.39]
[1765413502397,30.15062023,135.04,134.87,22.50823191]
[1765413502398,107.0149,134.94,134.87,22.50823191]
[1765413502706,9.99958677,134.92,134.87,66.31]
[1765413502999,107.0815,134.85,134.81,3.79373014]
[1765413503199,3.28,134.82,134.75,3.39]
[1765413503412,0.04794753,134.8,134.73,66.31]
[1765413503609,0.04794753,134.8,134.73,3.39]
[1765413503902,107.16964753,134.8,134.73,3.39]
[1765413504103,3.32794753,134.8,134.73,107.2827]
[1765413504301,3.32794753,134.8,134.73,3.39]
[1765413504494,6.41628144,134.75,134.68,3.39]
[1765413504807,6.41628144,134.75,134.65,62.94]
[1765413504808,3.33192532,134.73,134.65,62.94]
[1765413505097,0.05192532,134.73,134.67,3.39]
[1765413505304,0.05192532,134.73,134.69,3.39]
[1765413505489,3.28,134.76,134.7,62.94]
[1765413505889,107.1292,134.79,134.7,66.33]
[1765413506092,107.1292,134.79,134.71,3.39]
[1765413506093,3.28,134.79,134.71,3.39]
[1765413506287,3.28,134.76,134.68,3.39]
[1765413506488,3.33518677,134.76,134.68,66.35]
[1765413506695,3.33518677,134.76,134.71,0.05575738]
[1765413507101,3.28,134.74,134.71,0.05575738]
[1765413507893,3.28,134.72,134.71,0.05575738]
[1765413508097,3.28,134.72,134.64,3.39]
[1765413508098,3.28,134.71,134.64,3.39]
[1765413508305,103.9186,134.7,134.64,62.98]
[1765413508598,110.5989,134.7,134.63,62.98]
[1765413508805,110.5989,134.7,134.61,3.39]
[1765413508806,113.8789,134.7,134.61,3.39]
[1765413509000,0.05637458,134.67,134.63,3.39]
[1765413509706,0.05637458,134.67,134.64,3.39]
[1765413511197,0.05637458,134.67,134.6,103.9858]
[1765413511198,0.05637458,134.67,134.65,66.41]
[1765413511594,0.05637458,134.67,134.65,63.02]
[1765413511991,0.05637458,134.67,134.62,3.39]
[1765413512198,0.05637458,134.67,134.64,3.39]
[1765413512394,9.69628144,134.75,134.66,3.39]
[1765413512604,113.57818144,134.75,134.66,3.39]
[1765413512799,3.28,134.74,134.66,3.39]
[1765413513607,0.05112441,134.71,134.69,0.04744293]
[1765413514401,3.38112441,134.71,134.69,0.04744293]
[1765413514810,0.05112441,134.71,134.69,0.04744293]
[1765413515502,3.38112441,134.71,134.69,0.04744293]
[1765413515915,3.33,134.68,134.58,107.3578]
[1765413516108,3.33,134.68,134.6,3.35]
[1765413516799,0.05440581,134.65,134.63,0.02135435]
[1765413517197,3.38440581,134.65,134.63,0.02135435]
[1765413517601,0.05440581,134.65,134.63,0.02135435]
[1765413518003,0.05440581,134.65,134.63,3.37135435]
[1765413518910,0.05440581,134.65,134.64,66.43]
[1765413519111,0.05440581,134.65,134.63,0.02135435]
[1765413519813,3.38440581,134.65,134.63,0.02135435]
[1765413520002,3.33,134.64,134.57,3.35]
[1765413520202,3.33,134.67,134.58,66.43]
[1765413520714,3.33,134.62,134.54,66.43]
[1765413520906,3.33,134.62,134.55,3.35]
[1765413521107,107.2724,134.67,134.56,3.35]
[1765413521305,0.04999865,134.63,134.56,3.35]
[1765413521709,0.04999865,134.63,134.56,10.0368]
[1765413521912,103.9788,134.62,134.52,3.35]
[1765413522104,0.04752669,134.58,134.54,3.35]
[1765413522302,0.04752669,134.58,134.55,3.35]
[1765413522502,0.04752669,134.58,134.56,3.35]
[1765413522904,0.04752669,134.58,134.56,10.0369]
[1765413523101,3.33,134.65,134.58,3.35]
[1765413523316,103.9779,134.62,134.55,3.35]
[1765413523618,10.0139,134.63,134.56,63.1]
[1765413524016,0.05026687,134.61,134.58,0.04752669]
[1765413524911,0.05026687,134.61,134.58,3.39752669]
[1765413525113,107.2501,134.7,134.6,3.35]
[1765413525308,3.33,134.69,134.61,66.45]
[1765413525710,3.33,134.69,134.61,73.1345]
[1765413526211,3.33,134.69,134.64,0.05191042]
[1765413526212,0.04860361,134.66,134.64,0.05191042]
[1765413526715,3.37860361,134.66,134.64,0.05191042]
[1765413529014,0.04860361,134.66,134.64,0.05191042]
[1765413529418,0.04860361,134.66,134.64,3.40191042]
[1765413529608,3.33,134.73,134.64,3.40191042]
[1765413529813,3.33,134.73,134.64,3.35]
[1765413530623,0.05345076,134.7,134.67,0.04965449]
[1765413531024,3.38345076,134.7,134.67,0.04965449]
[1765413531416,3.33,134.69,134.67,0.04965449]
[1765413531920,10.0118,134.67,134.63,63.12]
[1765413532125,3.33,134.7,134.63,66.47]
[1765413532626,3.33,134.71,134.64,3.35]
[1765413532819,0.05154285,134.69,134.66,0.0553726]
[1765413533424,0.05154285,134.69,134.66,3.4053726]
[1765413533614,0.05154285,134.69,134.66,0.0553726]
[1765413533818,0.05154285,134.69,134.66,3.4053726]
[1765413535122,0.05154285,134.69,134.66,0.0553726]
[1765413535321,3.38154285,134.69,134.66,0.0553726]
[1765413535522,107.31054285,134.69,134.66,0.0553726]
[1765413535728,3.33,134.67,134.63,63.12]
[1765413536027,6.6825,134.66,134.63,63.12]
[1765413536629,3.33,134.65,134.63,63.16137007]
[1765413536828,6.73681254,134.66,134.63,63.16137007]
[1765413537029,6.6829,134.65,134.63,63.16137007]
[1765413537231,3.33,134.64,134.57,6.6864]
[1765413537416,104.00481254,134.66,134.58,3.35]
[1765413537417,103.9505,134.66,134.58,3.35]
[1765413537622,6.6825,134.66,134.58,3.35]
[1765413537815,3.33,134.69,134.6,3.35]
[1765413538222,0.05015916,134.66,134.6,3.35]
[1765413538515,0.05015916,134.66,134.61,3.35]
[1765413540027,6.73265916,134.66,134.61,3.35]
[1765413540224,0.05015916,134.66,134.61,3.35]
[1765413540529,0.05015916,134.66,134.62,3.35]
[1765413540717,0.05015916,134.66,134.64,3.35]
[1765413540919,0.05015916,134.66,134.65,66.47]
[1765413541735,0.05015916,134.66,134.65,63.12]
[1765413542428,0.05015916,134.66,134.65,66.47]
[1765413543118,107.212,134.75,134.66,3.35]
[1765413543323,112.63669047,134.75,134.66,3.35]
[1765413543529,103.8852,134.74,134.66,3.35]
[1765413544033,107.2552,134.74,134.66,3.35]
[1765413544337,0.05674869,134.71,134.69,0.05015917]
[1765413544635,10.10664869,134.71,134.69,0.05015917]
[1765413544831,3.37,134.7,134.69,0.05015917]
[1765413545233,5.46063378,134.7,134.69,0.05015917]
[1765413545435,10.10664869,134.71,134.69,0.05015917]
[1765413545635,5.46229388,134.7,134.69,0.05015917]
[1765413546140,8.83229388,134.7,134.69,0.05015917]
[1765413546339,15.51421505,134.7,134.69,0.05015917]
[1765413546928,5.46229388,134.7,134.69,3.33015917]
[1765413547127,5.46229388,134.7,134.69,0.05015917]
[1765413547433,12.14421505,134.7,134.69,0.05015917]
[1765413547631,12.14421505,134.7,134.69,3.33015917]
[1765413547834,0.05674869,134.71,134.69,4.81015917]
[1765413548042,9.02777204,134.76,134.7,0.64]
[1765413548236,9.02777204,134.75,134.7,7.3202]
[1765413548451,15.70537204,134.76,134.71,0.58]
[1765413548641,6.6776,134.76,134.71,0.58]
[1765413548935,6.6776,134.76,134.73,0.58]
[1765413549237,15.05440048,134.75,134.73,0.04743503]
[1765413549534,3.37,134.73,134.67,6.6813]
[1765413549743,9.02777204,134.72,134.69,0.58]
[1765413550436,9.07593626,134.72,134.69,0.63297963]
[1765413550639,15.70767204,134.71,134.69,63.17297963]
[1765413551740,8.37856199,134.7,134.64,63.12]
[1765413551930,117.45565806,134.71,134.64,63.12]
[1765413551931,8.97609552,134.67,134.64,63.7]
[1765413552743,9.02607715,134.67,134.64,63.7]
[1765413553045,0.04998163,134.67,134.65,0.58]
[1765413553547,8.97609552,134.72,134.69,0.53]
[1765413553842,8.97609552,134.73,134.69,0.53]
[1765413554344,8.97609552,134.74,134.7,63.65]
[1765413554535,0.04673149,134.73,134.71,0.58412934]
[1765413555141,0.04673149,134.73,134.71,0.05412934]
[1765413555442,3.18673149,134.73,134.71,0.05412934]
[1765413555642,6.72563149,134.73,134.71,0.05412934]
[1765413555840,6.72563149,134.73,134.71,0.59412934]
[1765413556029,0.04673149,134.73,134.71,0.59412934]
[1765413556937,0.04673149,134.73,134.71,63.17412934]
[1765413558441,0.04673149,134.73,134.71,63.71412934]
[1765413558634,0.04673149,134.73,134.71,63.17412934]
[1765413559237,0.04673149,134.73,134.71,63.71412934]
[1765413560436,107.08493149,134.73,134.67,0.54]
[1765413560643,3.14,134.71,134.65,63.1]
[1765413560941,5.46261976,134.7,134.66,0.54]
[1765413561247,5.46271481,134.73,134.66,0.54]
[1765413561543,107.1686,134.56,134.48,3.08]
[1765413561749,3.14,134.52,134.44,6.92016264]
[1765413562047,0.05672521,134.49,134.45,9.7723]
[1765413562242,3.14,134.56,134.45,3.08]
[1765413562447,104.0398,134.54,134.45,3.08]
[1765413562647,3.14,134.54,134.46,3.08]
[1765413562840,122.7485572,134.58,134.46,3.08]
[1765413563140,104.0173,134.57,134.46,3.08]
[1765413563350,0.04721683,134.53,134.51,0.05611312]
[1765413564036,0.04721683,134.53,134.51,3.13611312]
[1765413564241,107.1222,134.62,134.52,3.08]
[1765413564442,103.9882,134.61,134.52,3.08]
[1765413564644,107.1282,134.61,134.52,3.08]
[1765413564947,110.6787,134.6,134.52,3.08]
[1765413565138,103.9931,134.6,134.52,3.08]
[1765413565336,0.04881219,134.57,134.55,3.12681443]
[1765413565736,0.04881219,134.57,134.55,0.04681443]
[1765413569347,0.04881219,134.57,134.55,3.12681443]
[1765413571251,9.8233,134.64,134.56,3.08]
[1765413571654,3.14,134.64,134.57,3.08]
[1765413572052,3.14,134.64,134.57,9.7667]
[1765413572247,0.05131602,134.62,134.59,0.05485698]
[1765413572456,3.19131602,134.62,134.59,0.05485698]
[1765413575049,0.05131602,134.62,134.59,3.44485698]
[1765413576348,3.09,134.47,134.37,104.1711]
[1765413576553,3.09,134.47,134.29,312.6847]
[1765413576554,104.072,134.5,134.4,104.1472]
[1765413576853,107.1621,134.5,134.41,6.6944]
[1765413577244,0.04982429,134.47,134.44,0.05611205]
[1765413577456,3.09,134.45,134.44,0.05611205]
[1765413577845,3.09,134.45,134.32,104.2062]
[1765413577846,3.09,134.43,134.32,104.2062]
[1765413578045,3.09,134.48,134.37,104.1711]
[1765413578247,3.09,134.48,134.35,104.1843]
[1765413578248,3.09,134.44,134.35,104.1843]
[1765413578445,6.6924,134.46,134.38,0.55]
[1765413578645,6.6924,134.46,134.39,63.16]
[1765413578861,0.04709615,134.44,134.41,0.04413069]
[1765413579551,3.13709615,134.44,134.41,0.04413069]
[1765413580054,6.6939,134.43,134.41,0.04413069]
[1765413580356,3.09,134.39,134.24,0.55]
[1765413580557,10.14789671,134.34,134.25,0.6]
[1765413580866,9.59325624,134.35,134.27,0.6]
[1765413581060,9.59325624,134.35,134.27,7.3013]
[1765413581259,9.59325624,134.35,134.2,104.8982]
[1765413581260,107.3109,134.31,134.2,104.8982]
[1765413581464,0.05216889,134.27,134.21,0.6]
[1765413581663,0.05216889,134.27,134.21,63.76]
[1765413581865,0.05216889,134.27,134.21,0.6]
[1765413582173,3.14216889,134.27,134.2,0.6]
[1765413582461,3.14216889,134.27,134.18,69.8859]
[1765413582668,3.09,134.23,134.19,104.3072]
[1765413582857,3.09,134.28,134.21,104.2924]
[1765413583054,3.09,134.28,134.21,110.9968]
[1765413583768,3.09,134.3,134.21,110.9968]
[1765413583956,0.04822561,134.26,134.24,208.5388]
[1765413584157,3.09,134.34,134.25,167.4594]
[1765413584358,3.09,134.34,134.27,104.246]
[1765413585163,0.04935784,134.32,134.29,0.05692626]
[1765413586663,3.13935784,134.32,134.29,0.05692626]
[1765413586861,0.04935784,134.32,134.29,0.05692626]
[1765413587062,0.04935784,134.32,134.3,63.22]
[1765413588364,3.13935784,134.32,134.3,63.22]
[1765413588563,9.64261408,134.32,134.29,0.05692626]
[1765413588760,0.04935784,134.32,134.29,0.05692626]
[1765413589066,3.13935784,134.32,134.29,0.05692626]
[1765413590968,0.04935784,134.32,134.29,0.05692626]
[1765413591174,3.09,134.36,134.29,0.05692626]
[1765413591364,3.09,134.36,134.29,104.28952626]
[1765413591569,3.09,134.36,134.29,6.75722626]
[1765413591771,3.09,134.36,134.29,0.05692626]
[1765413592478,0.05142915,134.34,134.29,0.05692626]
[1765413593167,3.09,134.33,134.29,0.05692626]
[1765413593367,0.05142915,134.34,134.3,65.52]
[1765413594170,0.05142915,134.34,134.32,2.26]
[1765413594565,104.1135,134.45,134.35,8.9576]
[1765413594777,110.62085624,134.44,134.36,63.26]
[1765413594976,6.50325624,134.44,134.36,63.26]
[1765413595278,6.50325624,134.45,134.37,106.429]
[1765413595671,0.05656432,134.42,134.4,0.05671618]
[1765413595877,0.05656432,134.42,134.41,63.26]
[1765413600280,0.05656432,134.42,134.41,65.52]
[1765413600480,0.05656432,134.42,134.41,63.26]
[1765413600776,0.05656432,134.42,134.4,0.05671618]
[1765413600777,3.14656432,134.42,134.4,0.05671618]
[1765413601177,0.05656432,134.42,134.4,2.31671618]
[1765413601383,0.05656432,134.42,134.4,106.46431618]
[1765413601572,6.50325624,134.49,134.41,2.26]
[1765413601772,107.1571,134.51,134.42,63.24]
[1765413602082,6.6904,134.5,134.43,2.26]
[1765413602581,0.0477788,134.48,134.45,0.05606382]
[1765413603879,3.09,134.46,134.45,0.05606382]
[1765413604674,3.09,134.46,134.33,104.1974]
[1765413604675,3.15,134.41,134.31,104.2129]
[1765413604883,104.1199,134.44,134.34,2.27]
[1765413605083,107.2747,134.43,134.34,2.27]
[1765413605283,6.6954,134.4,134.34,2.27]
[1765413605687,0.05718103,134.38,134.36,0.04974901]
[1765413606189,3.20718103,134.38,134.36,0.04974901]
[1765413606575,9.90358103,134.38,134.36,0.04974901]
[1765413606775,3.20718103,134.38,134.36,0.04974901]
[1765413607174,3.15,134.34,134.31,63.24]
[1765413607578,9.65325624,134.36,134.31,63.24]
[1765413607787,3.15,134.35,134.31,63.24]
[1765413608284,0.05414773,134.34,134.32,0.05476895]
[1765413611086,0.05414773,134.34,134.32,2.32476895]
[1765413611479,3.15,134.41,134.33,2.27]
[1765413611680,3.15,134.41,134.33,106.469]
[1765413611985,9.8449,134.41,134.35,6.6975]
[1765413612380,3.39,134.44,134.36,65.5]
[1765413612582,3.39,134.44,134.39,0.05019485]
[1765413612583,0.05434405,134.41,134.39,0.05019485]
[1765413612782,3.44434405,134.41,134.39,0.05019485]
[1765413613886,0.05434405,134.41,134.39,0.05019485]
[1765413614683,0.05434405,134.41,134.39,2.31019485]
[1765413615088,0.05434405,134.41,134.4,2.26]
[1765413615289,10.0819,134.47,134.4,2.26]
[1765413615593,6.691,134.49,134.43,6.6936]
[1765413616195,0.05550909,134.47,134.45,0.04972381]
[1765413616391,0.05550909,134.47,134.45,2.30972381]
[1765413616587,3.39,134.55,134.47,2.21]
[1765413616788,3.39,134.55,134.48,2.21]
[1765413616988,3.39,134.55,134.49,6.6904]
[1765413617284,3.39,134.58,134.49,106.2868]
[1765413617597,0.04933103,134.55,134.52,2.26702816]
[1765413617799,0.04933103,134.55,134.52,63.29702816]
[1765413618180,3.43933103,134.55,134.52,0.05702816]
[1765413618683,0.04933103,134.55,134.52,0.05702816]
[1765413619280,0.04933103,134.55,134.52,6.74602816]
[1765413619487,0.04933103,134.55,134.52,8.95602816]
[1765413619790,0.04933103,134.55,134.52,63.29702816]
[1765413620483,3.43933103,134.55,134.52,63.29702816]
[1765413620997,0.04933103,134.55,134.52,63.29702816]
[1765413621494,0.04933103,134.55,134.53,2.21]
[1765413621994,0.04933103,134.55,134.54,2.21]
[1765413622988,3.39,134.63,134.56,6.6872]
[1765413623186,3.39,134.63,134.56,69.9072]
[1765413623391,10.074,134.63,134.56,69.9072]
[1765413623789,3.39,134.62,134.56,63.22]
[1765413623992,3.44356685,134.6,134.58,0.04745052]
[1765413624602,0.05356685,134.6,134.58,0.04745052]
[1765413625098,3.44356685,134.6,134.58,0.04745052]
[1765413625488,0.05356685,134.6,134.58,0.04745052]
[1765413626689,3.44356685,134.6,134.58,0.04745052]
[1765413627804,0.05356685,134.6,134.58,0.04745052]
[1765413628491,0.05356685,134.6,134.58,2.25745052]
[1765413628892,3.39,134.68,134.58,2.25745052]
[1765413629097,3.39,134.68,134.61,106.1924]
[1765413629298,6.50325624,134.71,134.63,2.21]
[1765413629299,3.39,134.71,134.63,2.21]
[1765413629494,9.89325624,134.75,134.65,106.1638]
[1765413629695,3.39,134.75,134.67,2.21]
[1765413630005,0.05234466,134.72,134.7,2.26335281]
[1765413630308,0.05258231,134.72,134.7,2.26335281]
[1765413630706,0.05258231,134.72,134.71,2.21]
[1765413631511,3.44258231,134.72,134.7,0.05335281]
[1765413632616,10.12218231,134.72,134.7,0.05335281]
[1765413633216,3.39,134.71,134.7,0.05335281]
[1765413633719,3.39,134.69,134.65,63.16]
[1765413633909,3.39,134.67,134.65,63.16]
[1765413634422,3.34,134.64,134.58,63.16]
[1765413634718,0.0500669,134.62,134.6,0.0486422]
[1765413635117,0.0500669,134.62,134.6,2.2586422]
[1765413635307,0.0500669,134.62,134.6,0.0486422]
[1765413638825,0.0500669,134.62,134.6,6.7336422]
[1765413639020,0.0500669,134.62,134.6,0.0486422]
[1765413640621,3.34,134.61,134.6,0.0486422]
[1765413640814,10.0744669,134.62,134.6,0.0486422]
[1765413641015,3.34,134.61,134.6,0.0486422]
[1765413642216,10.0744669,134.62,134.6,0.0486422]
[1765413642525,3.3900669,134.62,134.6,0.0486422]
[1765413644225,10.14471976,134.66,134.6,0.0486422]
[1765413645024,0.05502493,134.64,134.6,0.0486422]
[1765413645212,0.05502493,134.64,134.54,65.35]
[1765413645213,10.14471976,134.63,134.54,65.35]
[1765413645413,114.11741976,134.63,134.54,65.35]
[1765413646128,3.34,134.62,134.54,65.35]
[1765413646419,0.05060507,134.59,134.57,0.0512027]
[1765413646827,3.39060507,134.59,134.57,0.0512027]
[1765413647216,3.34,134.58,134.54,63.14]
[1765413648121,3.34,134.58,134.55,0.05398737]
[1765413648524,6.6868,134.57,134.55,0.05398737]
[1765413648732,3.34,134.56,134.55,0.05398737]
[1765413650020,3.34,134.56,134.54,63.14]
[1765413651017,3.34,134.56,134.54,63.19688164]
[1765413652929,3.34,134.56,134.49,66.24]
[1765413653328,6.6879,134.55,134.5,6.6901]
[1765413653631,3.34,134.58,134.51,107.1422]
[1765413654031,0.05223548,134.56,134.53,0.05216377]
[1765413654731,0.05223548,134.56,134.53,6.74056377]
[1765413655820,3.39223548,134.56,134.53,0.05216377]
[1765413656928,3.34,134.54,134.44,3.08]
[1765413657130,3.34,134.54,134.45,63.16]
[1765413657426,3.34,134.53,134.45,66.24]
[1765413657934,0.05214974,134.5,134.48,0.05659789]
[1765413658128,10.08244974,134.5,134.48,0.05659789]
[1765413658323,10.08244974,134.5,134.45,63.16]
[1765413658324,3.34,134.49,134.45,63.16]
[1765413658529,3.34,134.46,134.45,63.16]
[1765413658726,3.34,134.46,134.4,63.16]
[1765413659235,10.0326,134.46,134.41,6.6945]
[1765413659425,0.04812767,134.44,134.42,0.05589401]
[1765413659826,3.38812767,134.44,134.42,0.05589401]
[1765413660635,3.38812767,134.44,134.4,63.16]
[1765413660636,3.34,134.42,134.4,63.16]
[1765413660934,3.34,134.42,134.34,3.08]
[1765413660935,3.34,134.42,134.35,63.18]
[1765413661139,3.34,134.42,134.35,170.4439]
[1765413661534,3.34,134.42,134.36,3.08]
[1765413661839,0.05446577,134.4,134.38,9.81699556]
[1765413662027,3.34,134.45,134.38,3.12099556]
[1765413662427,107.4287,134.48,134.38,3.12099556]
[1765413662628,107.4287,134.48,134.38,3.08]
[1765413662823,3.34,134.47,134.38,3.08]
[1765413663031,0.05145406,134.44,134.41,0.05358807]
[1765413665228,0.05145406,134.44,134.41,3.91358807]
[1765413665628,167.2597,134.52,134.41,3.91358807]
[1765413665629,3.66,134.53,134.45,107.969]
[1765413665935,10.349,134.53,134.46,67.06]
[1765413666131,3.66,134.53,134.48,6.691]
[1765413666336,6.688,134.55,134.48,6.691]
[1765413666737,0.05379196,134.53,134.5,0.04692558]
[1765413667327,0.05379196,134.53,134.5,3.90692558]
[1765413667540,0.05379196,134.53,134.52,3.86]
[1765413668834,3.66,134.56,134.51,69.8894]
[1765413669136,3.66,134.56,134.52,63.2]
[1765413669532,3.66,134.56,134.47,6.6913]
[1765413669533,3.66,134.54,134.47,6.6913]
[1765413669733,3.7130862,134.52,134.49,0.04880998]
[1765413669931,3.7130862,134.52,134.49,3.90880998]
[1765413669932,0.0530862,134.52,134.49,3.90880998]
[1765413670526,0.0530862,134.52,134.5,10.37]
[1765413670739,0.0530862,134.52,134.51,3.68]
[1765413671048,3.76,134.6,134.51,3.68]
[1765413671542,6.6865,134.58,134.52,6.6891]
[1765413671744,10.4465,134.58,134.53,63.2]
[1765413671941,0.04910103,134.56,134.54,0.04736707]
[1765413672835,0.04910103,134.56,134.54,3.72736707]
[1765413673143,3.76,134.62,134.57,10.3667]
[1765413673341,3.76,134.62,134.58,63.2]
[1765413673739,107.7229,134.64,134.58,63.2]
[1765413673940,107.7229,134.64,134.6,0.05526733]
[1765413673941,3.76,134.61,134.6,0.05526733]
[1765413674140,3.76,134.59,134.54,63.18]
[1765413674337,3.76,134.57,134.53,63.18]
[1765413674937,10.4468,134.57,134.53,63.18]
[1765413675136,0.04907843,134.56,134.54,0.0563076]
[1765413677541,3.80907843,134.56,134.54,0.0563076]
[1765413677744,3.80907843,134.56,134.46,107.7779]
[1765413677936,3.76,134.54,134.47,63.18]
[1765413678143,3.76,134.53,134.47,63.18]
[1765413678742,0.05195507,134.51,134.49,0.05498447]
[1765413678944,10.50185507,134.51,134.49,0.05498447]
[1765413679340,3.76,134.5,134.49,0.05498447]
[1765413679649,0.05195507,134.51,134.49,0.05498447]
[1765413680241,3.81195507,134.51,134.49,0.05498447]
[1765413680746,0.05195507,134.51,134.49,0.05498447]
[1765413681549,107.8384,134.49,134.42,63.18]
[1765413682045,3.76,134.48,134.42,63.18]
[1765413682443,3.76,134.45,134.44,0.05480022]
[1765413682647,0.05088421,134.46,134.44,0.05480022]
[1765413683039,0.05088421,134.46,134.44,3.73480022]
[1765413683741,0.05088421,134.46,134.44,0.05480022]
[1765413684349,0.05088421,134.46,134.44,3.73480022]
[1765413684537,0.05088421,134.46,134.44,0.05480022]
[1765413684948,3.81088421,134.46,134.44,0.05480022]
[1765413685136,0.05088421,134.46,134.44,0.05480022]
[1765413688359,10.50328421,134.46,134.44,0.05480022]
[1765413688853,3.76,134.45,134.44,0.05480022]
[1765413689655,10.50328421,134.46,134.44,0.05480022]
[1765413690042,3.76,134.45,134.44,0.05480022]
[1765413690453,6.6934,134.44,134.39,63.2]
[1765413690655,3.76,134.45,134.39,63.2]
[1765413690656,3.76,134.43,134.39,63.2]
[1765413690858,104.1406,134.41,134.34,3.68]
[1765413691158,107.9006,134.41,134.34,66.88]
[1765413691457,6.6963,134.38,134.34,66.88]
[1765413691646,10.14471976,134.43,134.34,66.88]
[1765413691647,6.59214748,134.49,134.39,3.68]
[1765413691845,10.452,134.47,134.41,6.6945]
[1765413692049,10.452,134.47,134.4,63.2]
[1765413692050,3.76,134.45,134.4,63.2]
[1765413692445,3.76,134.45,134.35,104.1837]
[1765413692446,6.6938,134.43,134.39,3.68]
[1765413692656,0.0503321,134.42,134.4,3.72908934]
[1765413693057,0.0503321,134.42,134.4,10.42418934]
[1765413693556,0.0503321,134.42,134.4,0.04908934]
[1765413695355,0.0503321,134.42,134.4,3.43908934]
[1765413695562,0.0503321,134.42,134.4,10.13418934]
[1765413696749,0.0503321,134.42,134.41,3.39]
[1765413697659,0.0503321,134.42,134.4,6.74418934]
[1765413697857,0.0503321,134.42,134.4,10.13418934]
[1765413698050,0.0503321,134.42,134.41,3.39]
[1765413698252,0.0503321,134.42,134.4,6.74418934]
[1765413698459,0.0503321,134.42,134.41,3.39]
[1765413701555,3.33,134.46,134.42,6.6939]
[1765413702463,0.04749433,134.45,134.42,6.6939]
[1765413702659,0.04749433,134.45,134.41,3.39]
[1765413702862,3.37749433,134.45,134.41,3.39]
[1765413703666,3.37749433,134.45,134.4,0.04908934]
[1765413704960,10.0233,134.44,134.4,0.04908934]
[1765413706070,10.0233,134.44,134.4,6.74428934]
[1765413706272,0.04749433,134.45,134.4,3.43908934]
[1765413706768,3.37749433,134.45,134.41,6.6947]
[1765413707764,10.0232,134.44,134.4,0.04908934]
[1765413708163,3.33,134.44,134.4,0.04908934]
[1765413708668,3.33,134.48,134.44,3.39]
[1765413708874,3.33,134.52,134.46,3.39]
[1765413709265,6.6887,134.54,134.47,3.39]
[1765413709461,6.6887,134.54,134.48,3.39]
[1765413709973,0.05594187,134.52,134.5,6.74668892]
[1765413710174,0.05594187,134.52,134.51,66.61]
[1765413710560,10.07534187,134.52,134.5,0.05658892]
[1765413711566,3.33,134.51,134.5,0.05658892]
[1765413712272,6.6904,134.5,134.44,10.0827]
[1765413712475,3.33,134.5,134.44,63.22]
[1765413713269,6.74738801,134.48,134.44,63.22]
[1765413713474,10.07738801,134.48,134.46,0.05048799]
[1765413714275,10.07738801,134.48,134.37,3.39]
[1765413714276,0.89,134.45,134.37,3.39]
[1765413714572,0.89,134.45,134.38,66.61]
[1765413714573,7.38206666,134.45,134.38,66.61]
[1765413715177,7.38206666,134.45,134.4,10.0851]
[1765413715375,0.88,134.44,134.4,3.39]
[1765413715574,0.04805337,134.43,134.41,0.0565811]
[1765413716169,0.97805337,134.43,134.41,0.0565811]
[1765413716376,0.04805337,134.43,134.41,0.0565811]